[Event "Late-Titled-Tuesday-Blitz-August-29-2023"]
[Site "Chess.com"]
[Date "2023.08.29"]
[Round "6"]
[White "FaustinoOro"]
[Black "ozates"]
[Result "0-1"]
[WhiteElo "2871"]
[BlackElo "2581"]
[TimeControl "180+1"]
[EndTime "15:05:13 PDT"]
[Termination "ozates won by checkmate"]

1. e4 {[%clk 0:03:00.9]} 1... c5 {[%clk 0:02:59.7]} 2. Nf3 {[%clk 0:03:00.9]}
2... Nc6 {[%clk 0:02:58.4]} 3. Bb5 {[%clk 0:03:00.9]} 3... g6 {[%clk 0:02:57.5]}
4. O-O {[%clk 0:03:00.4]} 4... Bg7 {[%clk 0:02:57]} 5. c3 {[%clk 0:02:59.7]}
5... Nf6 {[%clk 0:02:54.8]} 6. Re1 {[%clk 0:02:59.7]} 6... O-O {[%clk
0:02:53.7]} 7. d4 {[%clk 0:02:59.6]} 7... d5 {[%clk 0:02:53.6]} 8. e5 {[%clk
0:02:59.9]} 8... Ne4 {[%clk 0:02:53.8]} 9. Be3 {[%clk 0:03:00.6]} 9... f6 {[%clk
0:02:48.7]} 10. exf6 {[%clk 0:02:52.4]} 10... exf6 {[%clk 0:02:49.6]} 11. dxc5
{[%clk 0:02:46.1]} 11... Ne5 {[%clk 0:02:40]} 12. h3 {[%clk 0:02:34.6]} 12... f5
{[%clk 0:02:29.6]} 13. Bd4 {[%clk 0:02:22.1]} 13... Nxf3+ {[%clk 0:02:14.2]} 14.
Qxf3 {[%clk 0:02:22.3]} 14... Ng5 {[%clk 0:02:14.6]} 15. Qd1 {[%clk 0:02:18.5]}
15... f4 {[%clk 0:02:14.3]} 16. Bxg7 {[%clk 0:02:09.5]} 16... Kxg7 {[%clk
0:02:12.7]} 17. h4 {[%clk 0:01:50.7]} 17... Ne4 {[%clk 0:02:09.7]} 18. Qd4+
{[%clk 0:01:49]} 18... Kh6 {[%clk 0:02:09.3]} 19. Nd2 {[%clk 0:01:28.3]} 19...
Nxd2 {[%clk 0:02:05.8]} 20. Qxd2 {[%clk 0:01:29.2]} 20... Qxh4 {[%clk 0:02:06]}
21. Qxd5 {[%clk 0:01:23.4]} 21... Rf5 {[%clk 0:01:40.5]} 22. Qg8 {[%clk
0:01:00.5]} 22... Bd7 {[%clk 0:01:09.3]} 23. Qxa8 {[%clk 0:00:57.9]} 23... Bxb5
{[%clk 0:01:09.5]} 24. f3 {[%clk 0:00:33.2]} 24... Qg3 {[%clk 0:00:34]} 25. Qd8
{[%clk 0:00:21.8]} 25... Rg5 {[%clk 0:00:30.2]} 26. Qd2 {[%clk 0:00:08.2]} 26...
Rh5 {[%clk 0:00:26.6]} 27. Re4 {[%clk 0:00:05.9]} 27... Qh2+ {[%clk 0:00:25.4]}
28. Kf2 {[%clk 0:00:06.5]} 28... Rg5 {[%clk 0:00:20.1]} 29. Qxf4 {[%clk
0:00:02.6]} 29... Qxg2+ {[%clk 0:00:19.9]} 30. Ke3 {[%clk 0:00:03.3]} 30... Qe2+
{[%clk 0:00:18.2]} 31. Kd4 {[%clk 0:00:03.6]} 31... Qd3# {[%clk 0:00:17.7]} 0-1

[Event "Late-Titled-Tuesday-Blitz-August-29-2023"]
[Site "Chess.com"]
[Date "2023.08.29"]
[Round "6"]
[White "Thjop"]
[Black "Kleyton_Lima"]
[Result "0-1"]
[WhiteElo "2687"]
[BlackElo "2536"]
[TimeControl "180+1"]
[EndTime "15:05:16 PDT"]
[Termination "Kleyton_Lima won by resignation"]

1. d4 {[%clk 0:03:00.9]} 1... Nf6 {[%clk 0:02:59.8]} 2. g3 {[%clk 0:03:01.4]}
2... d5 {[%clk 0:02:59.3]} 3. Bg2 {[%clk 0:03:01.8]} 3... e6 {[%clk 0:02:59.8]}
4. Nf3 {[%clk 0:03:02.5]} 4... b5 {[%clk 0:02:59.8]} 5. O-O {[%clk 0:03:03.4]}
5... Be7 {[%clk 0:02:59]} 6. a4 {[%clk 0:03:04.3]} 6... b4 {[%clk 0:02:59.2]} 7.
a5 {[%clk 0:03:04.7]} 7... O-O {[%clk 0:02:57.3]} 8. c4 {[%clk 0:03:03.8]} 8...
bxc3 {[%clk 0:02:56.8]} 9. Nxc3 {[%clk 0:03:02.9]} 9... c5 {[%clk 0:02:55.2]}
10. Bf4 {[%clk 0:02:50]} 10... Nc6 {[%clk 0:02:52.2]} 11. dxc5 {[%clk
0:02:37.5]} 11... Bxc5 {[%clk 0:02:51.5]} 12. Ne5 {[%clk 0:02:37.3]} 12... Nxa5
{[%clk 0:02:47.1]} 13. Nd3 {[%clk 0:02:37.2]} 13... Be7 {[%clk 0:02:42.9]} 14.
e4 {[%clk 0:02:35.4]} 14... Bb7 {[%clk 0:02:36.3]} 15. e5 {[%clk 0:02:27]} 15...
Nd7 {[%clk 0:02:32.7]} 16. h4 {[%clk 0:02:23.1]} 16... Nc4 {[%clk 0:02:32.2]}
17. h5 {[%clk 0:02:20.4]} 17... h6 {[%clk 0:02:32]} 18. Qg4 {[%clk 0:02:15.2]}
18... Bg5 {[%clk 0:02:29.2]} 19. b3 {[%clk 0:02:09.4]} 19... Ncb6 {[%clk
0:02:23.2]} 20. Rfe1 {[%clk 0:02:00.6]} 20... Bxf4 {[%clk 0:02:21.8]} 21. gxf4
{[%clk 0:02:00.2]} 21... Qe7 {[%clk 0:02:18.1]} 22. Nb5 {[%clk 0:01:53.9]} 22...
Nc5 {[%clk 0:02:08.1]} 23. Nxc5 {[%clk 0:01:45.3]} 23... Qxc5 {[%clk 0:02:09]}
24. Nd6 {[%clk 0:01:45.6]} 24... Qc7 {[%clk 0:01:53.2]} 25. Rac1 {[%clk
0:01:44.5]} 25... Qe7 {[%clk 0:01:50.8]} 26. Kh2 {[%clk 0:01:43]} 26... f5
{[%clk 0:01:46]} 27. exf6 {[%clk 0:01:33.2]} 27... Rxf6 {[%clk 0:01:45.8]} 28.
Nxb7 {[%clk 0:01:33.3]} 28... Qxb7 {[%clk 0:01:45.3]} 29. Rxe6 {[%clk 0:01:30]}
29... Rxe6 {[%clk 0:01:46.2]} 30. Qxe6+ {[%clk 0:01:30.5]} 30... Qf7 {[%clk
0:01:47.1]} 31. f5 {[%clk 0:01:09.6]} 31... Re8 {[%clk 0:01:43.5]} 32. Qg6
{[%clk 0:01:05.8]} 32... Qd7 {[%clk 0:01:37.3]} 33. Bh3 {[%clk 0:00:48]} 33...
Re2 {[%clk 0:01:31.2]} 34. Kg1 {[%clk 0:00:45.5]} 34... d4 {[%clk 0:01:27]} 35.
f6 {[%clk 0:00:40.7]} 35... Qf7 {[%clk 0:01:22.6]} 36. Bf1 {[%clk 0:00:28.2]}
36... Re6 {[%clk 0:01:16.2]} 37. Qxg7+ {[%clk 0:00:16.2]} 37... Qxg7+ {[%clk
0:01:15.7]} 38. fxg7 {[%clk 0:00:17.1]} 38... Kxg7 {[%clk 0:01:16.2]} 39. Rc7+
{[%clk 0:00:17.2]} 39... Kf6 {[%clk 0:01:11.8]} 40. Rxa7 {[%clk 0:00:17.1]}
40... Rd6 {[%clk 0:01:12.5]} 41. Bd3 {[%clk 0:00:17]} 41... Nd5 {[%clk
0:01:10.3]} 42. Rh7 {[%clk 0:00:14.8]} 42... Kg5 {[%clk 0:01:09.4]} 43. Be2
{[%clk 0:00:08.7]} 43... Nf4 {[%clk 0:01:07.7]} 44. Rg7+ {[%clk 0:00:09.2]}
44... Kf6 {[%clk 0:01:06.9]} 45. Rh7 {[%clk 0:00:03.8]} 45... d3 {[%clk
0:00:59.7]} 46. Rxh6+ {[%clk 0:00:03.5]} 46... Ke5 {[%clk 0:00:51.4]} 47. Rxd6
{[%clk 0:00:03.5]} 47... dxe2 {[%clk 0:00:52.1]} 48. Rd3 {[%clk 0:00:02]} 0-1

[Event "Late-Titled-Tuesday-Blitz-August-29-2023"]
[Site "Chess.com"]
[Date "2023.08.29"]
[Round "6"]
[White "dretch"]
[Black "Dhaydon19"]
[Result "1-0"]
[WhiteElo "2906"]
[BlackElo "2663"]
[TimeControl "180+1"]
[EndTime "15:05:17 PDT"]
[Termination "dretch won by resignation"]

1. d4 {[%clk 0:03:00.9]} 1... Nf6 {[%clk 0:02:59.2]} 2. c4 {[%clk 0:03:01.1]}
2... e6 {[%clk 0:02:56.3]} 3. Nc3 {[%clk 0:03:01.2]} 3... Bb4 {[%clk 0:02:56.4]}
4. Qc2 {[%clk 0:03:01.3]} 4... d5 {[%clk 0:02:55.5]} 5. cxd5 {[%clk 0:03:01.3]}
5... exd5 {[%clk 0:02:55.7]} 6. Bg5 {[%clk 0:03:00.4]} 6... c6 {[%clk
0:02:53.5]} 7. e3 {[%clk 0:02:59.4]} 7... Be6 {[%clk 0:02:53.3]} 8. Bd3 {[%clk
0:02:58.7]} 8... Nbd7 {[%clk 0:02:53.3]} 9. Ne2 {[%clk 0:02:54.7]} 9... h6
{[%clk 0:02:53.1]} 10. Bh4 {[%clk 0:02:49.4]} 10... Bd6 {[%clk 0:02:52.1]} 11.
Nf4 {[%clk 0:02:44]} 11... Qe7 {[%clk 0:02:44.5]} 12. Nxe6 {[%clk 0:02:38.6]}
12... fxe6 {[%clk 0:02:39.9]} 13. Bg6+ {[%clk 0:02:38.4]} 13... Kd8 {[%clk
0:02:36.6]} 14. e4 {[%clk 0:02:33.4]} 14... dxe4 {[%clk 0:02:33.1]} 15. O-O-O
{[%clk 0:02:30.1]} 15... Kc7 {[%clk 0:02:27.6]} 16. Nb5+ {[%clk 0:02:25.7]}
16... Kc8 {[%clk 0:02:19.5]} 17. Kb1 {[%clk 0:02:21.3]} 17... a6 {[%clk
0:02:11.4]} 18. Nxd6+ {[%clk 0:02:10.6]} 18... Qxd6 {[%clk 0:02:11.3]} 19. Bxe4
{[%clk 0:02:09.5]} 19... Nxe4 {[%clk 0:02:06.5]} 20. Qxe4 {[%clk 0:02:09.5]}
20... Qd5 {[%clk 0:02:05]} 21. Rhe1 {[%clk 0:02:07]} 21... Qxe4+ {[%clk
0:01:39.5]} 22. Rxe4 {[%clk 0:02:05.9]} 22... Re8 {[%clk 0:01:40]} 23. d5 {[%clk
0:01:51.2]} 23... e5 {[%clk 0:00:51.6]} 24. dxc6 {[%clk 0:01:47.7]} 24... bxc6
{[%clk 0:00:51.5]} 25. Rd6 {[%clk 0:01:27]} 25... Kc7 {[%clk 0:00:46.9]} 26. Rg6
{[%clk 0:01:26.8]} 26... Rg8 {[%clk 0:00:42]} 27. Rc4 {[%clk 0:01:16.2]} 27...
c5 {[%clk 0:00:37.7]} 28. Rcg4 {[%clk 0:01:12.2]} 28... a5 {[%clk 0:00:22.8]}
29. Rxg7 {[%clk 0:01:06.2]} 29... Rxg7 {[%clk 0:00:22.6]} 30. Rxg7 {[%clk
0:01:07.1]} 30... Ra6 {[%clk 0:00:20.3]} 31. Kc2 {[%clk 0:01:05.4]} 31... Rd6
{[%clk 0:00:20]} 32. Bg3 {[%clk 0:01:00.7]} 32... Rd5 {[%clk 0:00:19.9]} 33. Rg6
{[%clk 0:00:55.4]} 33... h5 {[%clk 0:00:19]} 34. Rg5 {[%clk 0:00:54]} 34... Kc6
{[%clk 0:00:19]} 35. Rxh5 {[%clk 0:00:54]} 35... c4 {[%clk 0:00:19.8]} 36. h4
{[%clk 0:00:50.6]} 36... Kc5 {[%clk 0:00:19.9]} 37. Rf5 {[%clk 0:00:50.3]} 37...
Kd4 {[%clk 0:00:19.6]} 38. h5 {[%clk 0:00:49.2]} 38... Ke4 {[%clk 0:00:20.2]}
39. Rf7 {[%clk 0:00:48.4]} 39... Rd6 {[%clk 0:00:19]} 40. h6 {[%clk 0:00:45.9]}
40... Nc5 {[%clk 0:00:19.2]} 41. f3+ {[%clk 0:00:36.2]} 41... Ke3 {[%clk
0:00:18.2]} 42. Bxe5 {[%clk 0:00:33.5]} 42... Rd2+ {[%clk 0:00:18.2]} 43. Kc3
{[%clk 0:00:34]} 43... Na4+ {[%clk 0:00:17]} 44. Kxc4 {[%clk 0:00:34.3]} 44...
Rxg2 {[%clk 0:00:17.4]} 45. h7 {[%clk 0:00:30.3]} 45... Nb6+ {[%clk 0:00:17.5]}
46. Kb5 {[%clk 0:00:29.9]} 1-0

[Event "Late-Titled-Tuesday-Blitz-August-29-2023"]
[Site "Chess.com"]
[Date "2023.08.29"]
[Round "6"]
[White "AryanTari"]
[Black "Athanasios2"]
[Result "1-0"]
[WhiteElo "2928"]
[BlackElo "2727"]
[TimeControl "180+1"]
[EndTime "15:05:20 PDT"]
[Termination "AryanTari won by checkmate"]

1. e4 {[%clk 0:02:52.9]} 1... c5 {[%clk 0:02:59.6]} 2. Nc3 {[%clk 0:02:52.2]}
2... d6 {[%clk 0:02:59.3]} 3. f4 {[%clk 0:02:49.8]} 3... g6 {[%clk 0:02:58.1]}
4. Nf3 {[%clk 0:02:50.1]} 4... Bg7 {[%clk 0:02:57.3]} 5. Bb5+ {[%clk 0:02:50.2]}
5... Bd7 {[%clk 0:02:57.3]} 6. Bc4 {[%clk 0:02:50.2]} 6... Nc6 {[%clk
0:02:52.1]} 7. d3 {[%clk 0:02:50.4]} 7... e6 {[%clk 0:02:50.9]} 8. f5 {[%clk
0:02:50.8]} 8... exf5 {[%clk 0:02:44.2]} 9. Bf4 {[%clk 0:02:50.8]} 9... Ne5
{[%clk 0:02:36.9]} 10. exf5 {[%clk 0:02:40.5]} 10... Bxf5 {[%clk 0:02:32.7]} 11.
Qe2 {[%clk 0:02:18.2]} 11... Ne7 {[%clk 0:02:01.5]} 12. Nxe5 {[%clk 0:02:17.9]}
12... dxe5 {[%clk 0:02:00.8]} 13. Bxe5 {[%clk 0:02:18.8]} 13... O-O {[%clk
0:01:56.1]} 14. Bxg7 {[%clk 0:02:19.1]} 14... Kxg7 {[%clk 0:01:57]} 15. Qe5+
{[%clk 0:02:19.6]} 15... f6 {[%clk 0:01:55.2]} 16. Qxc5 {[%clk 0:02:20.5]} 16...
Rc8 {[%clk 0:01:48.3]} 17. Qf2 {[%clk 0:02:20.3]} 17... a6 {[%clk 0:01:46.9]}
18. O-O {[%clk 0:02:17.6]} 18... b5 {[%clk 0:01:46.6]} 19. Bb3 {[%clk 0:02:18]}
19... Nc6 {[%clk 0:01:38.5]} 20. Rae1 {[%clk 0:01:54.7]} 20... Qd7 {[%clk
0:01:34.1]} 21. Nd5 {[%clk 0:01:53.9]} 21... Rce8 {[%clk 0:01:33.6]} 22. h3
{[%clk 0:01:45.3]} 22... Na5 {[%clk 0:01:24.8]} 23. Qc5 {[%clk 0:01:27.8]} 23...
Nxb3 {[%clk 0:01:05.2]} 24. axb3 {[%clk 0:01:28.7]} 24... Rf7 {[%clk 0:01:05.1]}
25. Nf4 {[%clk 0:00:58.4]} 25... Rc8 {[%clk 0:00:59.3]} 26. Qf2 {[%clk 0:00:59]}
26... Qd6 {[%clk 0:00:51.4]} 27. Nh5+ {[%clk 0:00:54.4]} 27... Kg8 {[%clk
0:00:45.6]} 28. Ng3 {[%clk 0:00:54.1]} 28... Rc5 {[%clk 0:00:34.8]} 29. b4
{[%clk 0:00:53]} 29... Rd5 {[%clk 0:00:34.8]} 30. Re8+ {[%clk 0:00:48.4]} 30...
Kg7 {[%clk 0:00:34.9]} 31. Qe3 {[%clk 0:00:46.4]} 31... Bd7 {[%clk 0:00:26.7]}
32. Ne4 {[%clk 0:00:42.1]} 32... Qxb4 {[%clk 0:00:10.5]} 33. Nxf6 {[%clk
0:00:34.7]} 33... Rxf6 {[%clk 0:00:02.6]} 34. Re7+ {[%clk 0:00:34.2]} 34... Kg8
{[%clk 0:00:01.8]} 35. Rxf6 {[%clk 0:00:33.1]} 35... Qxb2 {[%clk 0:00:02]} 36.
Re8+ {[%clk 0:00:29.6]} 36... Bxe8 {[%clk 0:00:01.6]} 37. Qxe8+ {[%clk
0:00:29.6]} 37... Kg7 {[%clk 0:00:02.5]} 38. Qf8# {[%clk 0:00:30.1]} 1-0

[Event "Late-Titled-Tuesday-Blitz-August-29-2023"]
[Site "Chess.com"]
[Date "2023.08.29"]
[Round "6"]
[White "pedromartinez91"]
[Black "viktorskliarov"]
[Result "0-1"]
[WhiteElo "2510"]
[BlackElo "2696"]
[TimeControl "180+1"]
[EndTime "15:05:27 PDT"]
[Termination "viktorskliarov won by resignation"]

1. e4 {[%clk 0:03:00.9]} 1... c5 {[%clk 0:02:53.4]} 2. Nf3 {[%clk 0:03:00.6]}
2... Nc6 {[%clk 0:02:51.9]} 3. d4 {[%clk 0:03:00.7]} 3... cxd4 {[%clk
0:02:51.5]} 4. Nxd4 {[%clk 0:03:01.6]} 4... Nf6 {[%clk 0:02:51.1]} 5. Nc3 {[%clk
0:03:01.5]} 5... e5 {[%clk 0:02:49.7]} 6. Ndb5 {[%clk 0:02:59.7]} 6... d6 {[%clk
0:02:49.7]} 7. Bg5 {[%clk 0:02:50.3]} 7... a6 {[%clk 0:02:49.1]} 8. Na3 {[%clk
0:02:50.9]} 8... b5 {[%clk 0:02:49]} 9. Nd5 {[%clk 0:02:50.3]} 9... Be7 {[%clk
0:02:49]} 10. Bxf6 {[%clk 0:02:49.6]} 10... Bxf6 {[%clk 0:02:48.6]} 11. c3
{[%clk 0:02:50.4]} 11... O-O {[%clk 0:02:47.6]} 12. Nc2 {[%clk 0:02:50.2]} 12...
Rb8 {[%clk 0:02:46.8]} 13. h4 {[%clk 0:02:48.8]} 13... g6 {[%clk 0:02:42.7]} 14.
g3 {[%clk 0:02:38.9]} 14... Bg7 {[%clk 0:02:34.9]} 15. h5 {[%clk 0:02:37.9]}
15... Be6 {[%clk 0:02:30.7]} 16. Nce3 {[%clk 0:02:33.7]} 16... Ne7 {[%clk
0:02:23.8]} 17. Nxe7+ {[%clk 0:02:27.3]} 17... Qxe7 {[%clk 0:02:23.2]} 18. Nd5
{[%clk 0:02:27.8]} 18... Bxd5 {[%clk 0:01:54.4]} 19. Qxd5 {[%clk 0:02:28.7]}
19... b4 {[%clk 0:01:54.7]} 20. hxg6 {[%clk 0:02:25.2]} 20... hxg6 {[%clk
0:01:53.1]} 21. c4 {[%clk 0:02:17.8]} 21... b3 {[%clk 0:01:45.6]} 22. a3 {[%clk
0:01:52.4]} 22... Rfc8 {[%clk 0:01:44.3]} 23. O-O-O {[%clk 0:01:50.1]} 23... Rb6
{[%clk 0:01:35.2]} 24. Kb1 {[%clk 0:01:49.8]} 24... Qf6 {[%clk 0:01:21.3]} 25.
Qd2 {[%clk 0:01:44]} 25... Qf3 {[%clk 0:01:15]} 26. Bd3 {[%clk 0:01:41.7]} 26...
Rc5 {[%clk 0:01:02.7]} 27. Qe2 {[%clk 0:01:41.2]} 27... Qxe2 {[%clk 0:01:01.3]}
28. Bxe2 {[%clk 0:01:42.1]} 28... a5 {[%clk 0:00:55.8]} 29. a4 {[%clk
0:01:33.4]} 29... Bf8 {[%clk 0:00:49.3]} 30. g4 {[%clk 0:01:21]} 30... Be7
{[%clk 0:00:38.2]} 31. Rh3 {[%clk 0:01:20.4]} 31... Bg5 {[%clk 0:00:33.4]} 32.
Rd5 {[%clk 0:01:19.7]} 32... Kg7 {[%clk 0:00:20.5]} 33. Rhd3 {[%clk 0:01:13.7]}
33... Rxc4 {[%clk 0:00:20]} 34. Rxb3 {[%clk 0:01:03.1]} 34... Rcb4 {[%clk
0:00:17]} 35. Rxb4 {[%clk 0:00:58.2]} 35... Rxb4 {[%clk 0:00:17.9]} 36. Bb5
{[%clk 0:00:56.7]} 36... Rxe4 {[%clk 0:00:17.3]} 37. Rxd6 {[%clk 0:00:57.2]}
37... Rxg4 {[%clk 0:00:17.3]} 38. Rd7 {[%clk 0:00:56.3]} 38... Rf4 {[%clk
0:00:15.7]} 39. b3 {[%clk 0:00:50.6]} 39... Rxf2 {[%clk 0:00:15]} 40. b4 {[%clk
0:00:51]} 40... axb4 {[%clk 0:00:14.4]} 41. a5 {[%clk 0:00:51.2]} 41... Be3
{[%clk 0:00:14.5]} 42. a6 {[%clk 0:00:50.9]} 42... Bd4 {[%clk 0:00:14.8]} 43. a7
{[%clk 0:00:50.1]} 43... Rb2+ {[%clk 0:00:14.7]} 44. Kc1 {[%clk 0:00:50]} 44...
Ra2 {[%clk 0:00:14.6]} 45. Rxd4 {[%clk 0:00:26.9]} 45... exd4 {[%clk 0:00:12.4]}
0-1

[Event "Late-Titled-Tuesday-Blitz-August-29-2023"]
[Site "Chess.com"]
[Date "2023.08.29"]
[Round "6"]
[White "Road2GM3000"]
[Black "Berardino"]
[Result "0-1"]
[WhiteElo "2505"]
[BlackElo "2684"]
[TimeControl "180+1"]
[EndTime "15:05:27 PDT"]
[Termination "Berardino won by checkmate"]

1. d4 {[%clk 0:03:00.9]} 1... Nf6 {[%clk 0:02:59.5]} 2. c4 {[%clk 0:03:01.5]}
2... g6 {[%clk 0:02:57.9]} 3. Nc3 {[%clk 0:03:02]} 3... Bg7 {[%clk 0:02:57.6]}
4. e4 {[%clk 0:03:02.7]} 4... d6 {[%clk 0:02:57.8]} 5. f4 {[%clk 0:03:03.4]}
5... O-O {[%clk 0:02:57.1]} 6. Nf3 {[%clk 0:03:04.2]} 6... c5 {[%clk 0:02:57.3]}
7. d5 {[%clk 0:03:04.9]} 7... e6 {[%clk 0:02:57.3]} 8. Be2 {[%clk 0:03:05.6]}
8... exd5 {[%clk 0:02:57.8]} 9. exd5 {[%clk 0:03:06.1]} 9... Bf5 {[%clk
0:02:50.9]} 10. O-O {[%clk 0:03:06.7]} 10... Ne4 {[%clk 0:02:50.7]} 11. Nxe4
{[%clk 0:03:06.1]} 11... Bxe4 {[%clk 0:02:50.8]} 12. Bd3 {[%clk 0:03:06.8]}
12... Bxd3 {[%clk 0:02:47.1]} 13. Qxd3 {[%clk 0:03:07.7]} 13... Nd7 {[%clk
0:02:47.1]} 14. f5 {[%clk 0:03:08]} 14... Ne5 {[%clk 0:02:43.7]} 15. Nxe5 {[%clk
0:03:06.6]} 15... Bxe5 {[%clk 0:02:43.4]} 16. Qh3 {[%clk 0:02:39.4]} 16... Re8
{[%clk 0:02:02.2]} 17. Kh1 {[%clk 0:02:31.6]} 17... b6 {[%clk 0:01:35.3]} 18.
Bh6 {[%clk 0:02:30.8]} 18... Bxb2 {[%clk 0:01:29.9]} 19. Rab1 {[%clk 0:02:25.2]}
19... Bd4 {[%clk 0:01:19.4]} 20. Rb3 {[%clk 0:02:09.3]} 20... Qe7 {[%clk
0:01:15.1]} 21. Rbf3 {[%clk 0:02:04]} 21... Qe2 {[%clk 0:00:55.4]} 22. Qg4
{[%clk 0:01:45.6]} 22... Re4 {[%clk 0:00:38.4]} 23. fxg6 {[%clk 0:01:07.2]}
23... hxg6 {[%clk 0:00:36.9]} 24. Qd7 {[%clk 0:00:54.2]} 24... Re7 {[%clk
0:00:27.2]} 25. Qxd6 {[%clk 0:00:49.8]} 25... Rae8 {[%clk 0:00:20.6]} 26. Qg3
{[%clk 0:00:34.8]} 26... Qe5 {[%clk 0:00:12.7]} 27. Bf4 {[%clk 0:00:33.7]} 27...
Qe2 {[%clk 0:00:10.9]} 28. h3 {[%clk 0:00:33.2]} 28... Qxc4 {[%clk 0:00:10.4]}
29. Bd6 {[%clk 0:00:17.5]} 29... Re3 {[%clk 0:00:10.3]} 30. Qf4 {[%clk
0:00:11.5]} 30... Rxf3 {[%clk 0:00:09.2]} 31. Rxf3 {[%clk 0:00:12.2]} 31... Qxd5
{[%clk 0:00:09.2]} 32. Qg3 {[%clk 0:00:07.5]} 32... Qe4 {[%clk 0:00:04.1]} 33.
Bf4 {[%clk 0:00:07]} 33... Qe1+ {[%clk 0:00:04.1]} 34. Kh2 {[%clk 0:00:07.7]}
34... Bg1+ {[%clk 0:00:02.6]} 35. Kh1 {[%clk 0:00:07.7]} 35... Bf2+ {[%clk
0:00:03]} 36. Kh2 {[%clk 0:00:08.3]} 36... Qg1# {[%clk 0:00:03.5]} 0-1

[Event "Late-Titled-Tuesday-Blitz-August-29-2023"]
[Site "Chess.com"]
[Date "2023.08.29"]
[Round "6"]
[White "Eloist"]
[Black "rochaaaaaaaaaa"]
[Result "0-1"]
[WhiteElo "2447"]
[BlackElo "2249"]
[TimeControl "180+1"]
[EndTime "15:05:27 PDT"]
[Termination "rochaaaaaaaaaa won by resignation"]

1. e4 {[%clk 0:03:00.7]} 1... c6 {[%clk 0:02:58]} 2. Nf3 {[%clk 0:03:00.3]} 2...
d5 {[%clk 0:02:58.2]} 3. Nc3 {[%clk 0:03:00.3]} 3... dxe4 {[%clk 0:02:58]} 4.
Nxe4 {[%clk 0:03:00.2]} 4... Nf6 {[%clk 0:02:58.3]} 5. Ng3 {[%clk 0:03:00.1]}
5... Bg4 {[%clk 0:02:53.2]} 6. h3 {[%clk 0:02:59.6]} 6... Bxf3 {[%clk
0:02:53.5]} 7. Qxf3 {[%clk 0:03:00]} 7... e6 {[%clk 0:02:54]} 8. c3 {[%clk
0:02:47.7]} 8... Be7 {[%clk 0:02:51.4]} 9. d4 {[%clk 0:02:47.6]} 9... O-O {[%clk
0:02:50.4]} 10. Bd3 {[%clk 0:02:46.9]} 10... Qd5 {[%clk 0:02:46.3]} 11. Ne4
{[%clk 0:02:45.7]} 11... Nbd7 {[%clk 0:02:44.2]} 12. O-O {[%clk 0:02:43.9]}
12... Rad8 {[%clk 0:02:38.4]} 13. Re1 {[%clk 0:02:40.3]} 13... Rfe8 {[%clk
0:02:37.1]} 14. Be3 {[%clk 0:02:31.5]} 14... Qh5 {[%clk 0:02:26.3]} 15. g4
{[%clk 0:02:28.1]} 15... Qa5 {[%clk 0:02:20.2]} 16. a4 {[%clk 0:02:11.6]} 16...
Nxe4 {[%clk 0:02:20]} 17. Qxe4 {[%clk 0:02:08]} 17... Nf6 {[%clk 0:02:20.2]} 18.
Qg2 {[%clk 0:01:48.5]} 18... Qd5 {[%clk 0:02:10.9]} 19. g5 {[%clk 0:01:40.9]}
19... Qxg2+ {[%clk 0:02:09.9]} 20. Kxg2 {[%clk 0:01:41.8]} 20... Nd5 {[%clk
0:02:09.9]} 21. Bd2 {[%clk 0:01:34.6]} 21... Bd6 {[%clk 0:02:09.8]} 22. Re4
{[%clk 0:01:29.2]} 22... Ne7 {[%clk 0:01:59.3]} 23. Rae1 {[%clk 0:01:26.7]}
23... g6 {[%clk 0:01:58.4]} 24. h4 {[%clk 0:01:21.7]} 24... Nf5 {[%clk
0:01:56.4]} 25. h5 {[%clk 0:01:19.8]} 25... Bc7 {[%clk 0:01:56.5]} 26. hxg6
{[%clk 0:01:12.8]} 26... hxg6 {[%clk 0:01:56.3]} 27. Bf4 {[%clk 0:01:09.1]}
27... Bxf4 {[%clk 0:01:53]} 28. Rxf4 {[%clk 0:01:10]} 28... Kg7 {[%clk
0:01:50.9]} 29. Bxf5 {[%clk 0:01:08]} 29... gxf5 {[%clk 0:01:50.2]} 30. Rh4
{[%clk 0:01:01.8]} 30... Rh8 {[%clk 0:01:49.8]} 31. Rxh8 {[%clk 0:00:59.9]}
31... Rxh8 {[%clk 0:01:47.7]} 32. Kg3 {[%clk 0:00:56.8]} 32... Kg6 {[%clk
0:01:47.3]} 33. Kf4 {[%clk 0:00:48.9]} 33... Rh4+ {[%clk 0:01:35.4]} 34. Ke5
{[%clk 0:00:48.9]} 34... Kxg5 {[%clk 0:01:35.9]} 35. a5 {[%clk 0:00:44.1]} 35...
Rh2 {[%clk 0:01:25.6]} 36. Re2 {[%clk 0:00:41.6]} 36... Kg4 {[%clk 0:01:21.1]}
37. a6 {[%clk 0:00:17.2]} 37... bxa6 {[%clk 0:01:20.8]} 38. Kd6 {[%clk
0:00:17.3]} 38... Kf3 {[%clk 0:01:20.6]} 39. Re5 {[%clk 0:00:16.9]} 39... Rxf2
{[%clk 0:01:20]} 40. Kxc6 {[%clk 0:00:15.4]} 40... Rxb2 {[%clk 0:01:19.7]} 41.
c4 {[%clk 0:00:11.7]} 41... Kg4 {[%clk 0:01:10.8]} 42. d5 {[%clk 0:00:11.4]}
42... exd5 {[%clk 0:01:10.3]} 43. cxd5 {[%clk 0:00:11.5]} 43... f4 {[%clk
0:01:10.8]} 44. d6 {[%clk 0:00:10.9]} 44... Rb6+ {[%clk 0:00:54]} 45. Kc7 {[%clk
0:00:10.4]} 45... Rxd6 {[%clk 0:00:54.2]} 46. Kxd6 {[%clk 0:00:09.7]} 46... f3
{[%clk 0:00:55.1]} 47. Re1 {[%clk 0:00:06.5]} 47... f2 {[%clk 0:00:54.7]} 48.
Ra1 {[%clk 0:00:05.7]} 48... Kg3 {[%clk 0:00:53]} 49. Ke5 {[%clk 0:00:05.2]}
49... Kg2 {[%clk 0:00:52.7]} 50. Kf6 {[%clk 0:00:05.2]} 50... f1=Q+ {[%clk
0:00:50.2]} 51. Rxf1 {[%clk 0:00:05]} 51... Kxf1 {[%clk 0:00:51.1]} 52. Kxf7
{[%clk 0:00:05.3]} 52... a5 {[%clk 0:00:51.7]} 53. Ke6 {[%clk 0:00:05.7]} 53...
a4 {[%clk 0:00:52.6]} 54. Kd5 {[%clk 0:00:06.1]} 54... a3 {[%clk 0:00:53.5]} 55.
Kc4 {[%clk 0:00:06.6]} 55... a2 {[%clk 0:00:54.4]} 0-1